[Event "2026 European Womens Championship"]
[Site "Batumi, GE"]
[Date "2026.05.30"]
[Round "6"]
[White "Hnatyshyn, Anastasiia"]
[Black "Kiolbasa, Oliwia"]
[Result "1-0"]
[Board "49"]
[TimeControl "5400+30"]
[WhiteFideId "14198339"]
[BlackFideId "1154613"]
[WhiteElo "2207"]
[BlackElo "2397"]
[WhiteTitle "WFM"]
[BlackTitle "IM"]
[WhiteClock "0:03:34"]
[BlackClock "0:01:42"]
[Variant "Standard"]

1. e4 {[%clk 1:30:58]}  e5 {[%clk 1:25:25]} 2. Nf3 {[%clk 1:31:22]}  Nc6 {[%clk 1:25:51]} 3. d4 {[%clk 1:31:48]}  exd4 {[%clk 1:26:16]}
4. Nxd4 {[%clk 1:32:14]}  Bc5 {[%clk 1:26:33]} 5. Nb3 {[%clk 1:32:40]}  Bb4+ {[%clk 1:26:32]} 6. c3 {[%clk 1:33:03]}  Be7 {[%clk 1:26:50]}
7. Bd3 {[%clk 1:27:00]}  d5 {[%clk 1:19:40]} 8. O-O {[%clk 1:20:46]}  Nf6 {[%clk 1:12:36]} 9. N1d2 {[%clk 1:12:14]}  O-O {[%clk 0:56:45]}
10. Qe2 {[%clk 1:00:29]}  a5 {[%clk 0:44:37]} 11. e5 {[%clk 0:55:12]}  Ng4 {[%clk 0:41:40]} 12. f4 {[%clk 0:51:32]}  a4 {[%clk 0:42:06]}
13. Nd4 {[%clk 0:51:56]}  Bc5 {[%clk 0:41:03]} 14. N2f3 {[%clk 0:49:58]}  f6 {[%clk 0:39:02]} 15. e6 {[%clk 0:38:21]}  f5 {[%clk 0:31:36]}
16. h3 {[%clk 0:37:47]}  Nf6 {[%clk 0:28:18]} 17. Bxf5 {[%clk 0:35:53]}  g6 {[%clk 0:25:38]} 18. Bd3 {[%clk 0:30:40]}  Nh5 {[%clk 0:22:50]}
19. Kh2 {[%clk 0:24:49]}  Bd6 {[%clk 0:13:13]} 20. g3 {[%clk 0:24:28]}  Qf6 {[%clk 0:12:23]} 21. Bd2 {[%clk 0:21:19]}  Re8 {[%clk 0:11:32]}
22. Rae1 {[%clk 0:20:48]}  Nd8 {[%clk 0:05:45]} 23. Qg2 {[%clk 0:16:57]}  Nxe6 {[%clk 0:03:30]} 24. Nb5 {[%clk 0:13:59]}  Bf8 {[%clk 0:00:46]}
25. Ng5 {[%clk 0:12:16]}  c6 {[%clk 0:00:51]} 26. f5 {[%clk 0:10:28]}  Nxg5 {[%clk 0:00:34]} 27. Rxe8 {[%clk 0:09:59]}  gxf5 {[%clk 0:00:43]}
28. Bxg5 {[%clk 0:07:46]}  Qxg5 {[%clk 0:00:54]} 29. Nd6 {[%clk 0:08:06]}  Kg7 {[%clk 0:00:33]} 30. Nxc8 {[%clk 0:06:27]}  Nf6 {[%clk 0:00:52]}
31. Rxf5 {[%clk 0:06:40]}  Qh6 {[%clk 0:00:56]} 32. Rxf8 {[%clk 0:03:45]}  Kxf8 {[%clk 0:01:14]} 33. Nb6 {[%clk 0:04:00]}  Rd8 {[%clk 0:01:23]}
34. g4 {[%clk 0:03:44]}  Qe3 {[%clk 0:01:15]} 35. Rxf6+ {[%clk 0:04:00]}  Kg7 {[%clk 0:01:44]} 36. Rf3 {[%clk 0:03:25]}  Qxb6 {[%clk 0:01:50]}
37. Qg3 {[%clk 0:03:21]}  Re8 {[%clk 0:01:42]} 38. Qf4 {[%clk 0:03:34]} 1-0

[Event "2026 European Womens Championship"]
[Site "Batumi, GE"]
[Date "2026.05.30"]
[Round "6"]
[White "Fataliyeva, Ulviyya"]
[Black "Aydin, Gulenay"]
[Result "1-0"]
[Board "50"]
[TimeControl "5400+30"]
[WhiteFideId "13403052"]
[BlackFideId "34557431"]
[WhiteElo "2450"]
[BlackElo "2204"]
[WhiteTitle "IM"]
[BlackTitle "WIM"]
[WhiteClock "0:03:54"]
[BlackClock "0:01:23"]
[Variant "Standard"]

1. e4 {[%clk 1:22:25]}  c5 {[%clk 1:30:44]} 2. Nc3 {[%clk 1:22:47]}  a6 {[%clk 1:30:52]} 3. g3 {[%clk 1:22:47]}  b5 {[%clk 1:30:43]}
4. Bg2 {[%clk 1:21:30]}  Bb7 {[%clk 1:30:41]} 5. Nh3 {[%clk 1:21:43]}  e6 {[%clk 1:18:00]} 6. O-O {[%clk 1:20:49]}  b4 {[%clk 0:58:44]}
7. Na4 {[%clk 1:14:27]}  Nf6 {[%clk 0:57:19]} 8. d3 {[%clk 1:05:09]}  d5 {[%clk 0:56:27]} 9. Bg5 {[%clk 1:03:03]}  dxe4 {[%clk 0:38:06]}
10. Bxf6 {[%clk 0:55:04]}  gxf6 {[%clk 0:37:07]} 11. Qh5 {[%clk 0:51:35]}  Bd6 {[%clk 0:18:44]} 12. Nxc5 {[%clk 0:48:21]}  Qa5 {[%clk 0:18:07]}
13. Ng5 {[%clk 0:43:01]}  fxg5 {[%clk 0:14:00]} 14. Nxb7 {[%clk 0:42:23]}  Qc7 {[%clk 0:13:51]} 15. Nxd6+ {[%clk 0:42:31]}  Qxd6 {[%clk 0:14:19]}
16. Qxg5 {[%clk 0:41:50]}  Nd7 {[%clk 0:13:49]} 17. dxe4 {[%clk 0:41:52]}  Rc8 {[%clk 0:14:03]} 18. Rfd1 {[%clk 0:40:00]}  Qc5 {[%clk 0:12:40]}
19. Qd2 {[%clk 0:36:33]}  Ne5 {[%clk 0:12:50]} 20. Rac1 {[%clk 0:36:09]}  Nc4 {[%clk 0:09:30]} 21. Qd7+ {[%clk 0:33:31]}  Kf8 {[%clk 0:09:58]}
22. b3 {[%clk 0:33:01]}  Ne5 {[%clk 0:09:37]} 23. Qd4 {[%clk 0:31:46]}  Ke7 {[%clk 0:08:23]} 24. h3 {[%clk 0:30:13]}  a5 {[%clk 0:06:26]}
25. f4 {[%clk 0:29:18]}  Nd7 {[%clk 0:06:32]} 26. e5 {[%clk 0:27:22]}  Qxd4+ {[%clk 0:02:18]} 27. Rxd4 {[%clk 0:27:46]}  Rc3 {[%clk 0:02:45]}
28. Kf2 {[%clk 0:24:41]}  Rhc8 {[%clk 0:00:46]} 29. Rd2 {[%clk 0:23:11]}  h5 {[%clk 0:00:49]} 30. Bf1 {[%clk 0:21:47]}  Nc5 {[%clk 0:01:04]}
31. Re1 {[%clk 0:21:54]}  Rg8 {[%clk 0:01:13]} 32. Bd3 {[%clk 0:21:40]}  Rd8 {[%clk 0:00:38]} 33. Re3 {[%clk 0:19:59]}  Rd4 {[%clk 0:00:37]}
34. h4 {[%clk 0:19:36]}  a4 {[%clk 0:00:37]} 35. bxa4 {[%clk 0:18:15]}  Ra3 {[%clk 0:00:46]} 36. Ke2 {[%clk 0:11:53]}  Rxa2 {[%clk 0:01:10]}
37. c3 {[%clk 0:10:22]}  Rxd2+ {[%clk 0:00:39]} 38. Kxd2 {[%clk 0:10:51]}  bxc3+ {[%clk 0:00:36]} 39. Kxc3 {[%clk 0:11:20]}  Rxa4 {[%clk 0:00:38]}
40. Be2 {[%clk 0:11:19]}  Ne4+ {[%clk 0:00:34]} 41. Kb3 {[%clk 0:02:13]}  Nc5+ {[%clk 0:28:34]} 42. Kc2 {[%clk 0:32:05]}  Ra2+ {[%clk 0:17:23]}
43. Kb1 {[%clk 0:29:56]}  Rd2 {[%clk 0:13:08]} 44. Bxh5 {[%clk 0:29:24]}  f5 {[%clk 0:12:03]} 45. exf6+ {[%clk 0:27:00]}  Kxf6 {[%clk 0:12:23]}
46. Bg4 {[%clk 0:26:15]}  Rg2 {[%clk 0:06:11]} 47. Kc1 {[%clk 0:20:07]}  Rg1+ {[%clk 0:06:15]} 48. Kc2 {[%clk 0:20:20]}  Kf7 {[%clk 0:05:31]}
49. Re5 {[%clk 0:16:17]}  Rg2+ {[%clk 0:04:53]} 50. Kd1 {[%clk 0:15:45]}  Rg1+ {[%clk 0:03:56]} 51. Ke2 {[%clk 0:14:22]}  Rc1 {[%clk 0:03:45]}
52. h5 {[%clk 0:13:05]}  Rc3 {[%clk 0:01:05]} 53. h6 {[%clk 0:08:58]}  Kg6 {[%clk 0:01:32]} 54. Bxe6 {[%clk 0:06:07]}  Na4 {[%clk 0:00:34]}
55. Bd7 {[%clk 0:05:51]}  Nc5 {[%clk 0:00:40]} 56. Bb5 {[%clk 0:04:44]}  Nb3 {[%clk 0:00:35]} 57. Re6+ {[%clk 0:04:09]}  Kh7 {[%clk 0:01:03]}
58. Rd6 {[%clk 0:03:17]}  Rxg3 {[%clk 0:00:41]} 59. Bd3+ {[%clk 0:03:22]}  Kh8 {[%clk 0:01:10]} 60. Rd8+ {[%clk 0:03:32]}  Rg8 {[%clk 0:01:23]}
61. Rxg8+ {[%clk 0:03:54]} 1-0

[Event "2026 European Womens Championship"]
[Site "Batumi, GE"]
[Date "2026.05.30"]
[Round "6"]
[White "Ushenina, Anna"]
[Black "Rakhmangulova, Anastasiya"]
[Result "1/2-1/2"]
[Board "51"]
[TimeControl "5400+30"]
[WhiteFideId "14110911"]
[BlackFideId "14117479"]
[WhiteElo "2420"]
[BlackElo "2328"]
[WhiteTitle "GM"]
[BlackTitle "WGM"]
[WhiteClock "0:18:19"]
[BlackClock "0:27:37"]
[Variant "Standard"]

1. d4 {[%clk 1:30:56]}  Nf6 {[%clk 1:30:56]} 2. c4 {[%clk 1:31:03]}  g6 {[%clk 1:31:20]} 3. g3 {[%clk 1:30:36]}  Bg7 {[%clk 1:31:42]}
4. Bg2 {[%clk 1:30:53]}  d6 {[%clk 1:32:03]} 5. Nf3 {[%clk 1:31:05]}  O-O {[%clk 1:32:17]} 6. O-O {[%clk 1:30:58]}  a6 {[%clk 1:31:16]}
7. Nc3 {[%clk 1:30:36]}  Nc6 {[%clk 1:31:29]} 8. h3 {[%clk 1:29:04]}  Rb8 {[%clk 1:28:42]} 9. e4 {[%clk 1:27:34]}  b5 {[%clk 1:16:06]}
10. d5 {[%clk 1:25:03]}  Na5 {[%clk 1:14:33]} 11. cxb5 {[%clk 1:25:10]}  axb5 {[%clk 1:14:59]} 12. b4 {[%clk 1:25:20]}  Nc4 {[%clk 1:13:54]}
13. Nd4 {[%clk 1:24:04]}  Bd7 {[%clk 1:13:52]} 14. a4 {[%clk 1:20:22]}  bxa4 {[%clk 1:08:25]} 15. b5 {[%clk 1:20:18]}  e6 {[%clk 0:58:45]}
16. Rxa4 {[%clk 0:58:04]}  exd5 {[%clk 0:57:59]} 17. exd5 {[%clk 0:56:49]}  Nb6 {[%clk 0:58:25]} 18. Rb4 {[%clk 0:57:08]}  Ra8 {[%clk 0:51:52]}
19. Nc6 {[%clk 0:51:18]}  Bxc6 {[%clk 0:52:09]} 20. dxc6 {[%clk 0:32:54]}  Ra1 {[%clk 0:47:58]} 21. Na4 {[%clk 0:25:33]}  Qb8 {[%clk 0:43:19]}
22. Nxb6 {[%clk 0:24:27]}  Qxb6 {[%clk 0:43:15]} 23. Qb3 {[%clk 0:20:00]}  Qa5 {[%clk 0:36:48]} 24. b6 {[%clk 0:20:04]}  cxb6 {[%clk 0:36:48]}
25. Rxb6 {[%clk 0:20:04]}  d5 {[%clk 0:34:07]} 26. Bf4 {[%clk 0:17:23]}  Rxf1+ {[%clk 0:34:07]} 27. Bxf1 {[%clk 0:17:23]}  Ne4 {[%clk 0:31:07]}
28. Rb5 {[%clk 0:05:06]}  Qa7 {[%clk 0:24:08]} 29. Be3 {[%clk 0:02:57]}  Qc7 {[%clk 0:16:51]} 30. Rxd5 {[%clk 0:01:28]}  Qxc6 {[%clk 0:17:16]}
31. Bg2 {[%clk 0:01:42]}  Qc3 {[%clk 0:17:16]} 32. Qxc3 {[%clk 0:01:42]}  Nxc3 {[%clk 0:17:16]} 33. Rd7 {[%clk 0:02:28]}  h5 {[%clk 0:13:01]}
34. Bb7 {[%clk 0:01:54]}  Re8 {[%clk 0:11:25]} 35. Ba6 {[%clk 0:02:01]}  Bf6 {[%clk 0:11:14]} 36. Bc4 {[%clk 0:01:51]}  Re7 {[%clk 0:11:27]}
37. Rd3 {[%clk 0:00:40]}  Kg7 {[%clk 0:11:12]} 38. Kg2 {[%clk 0:00:59]}  Rc7 {[%clk 0:11:03]} 39. Bb3 {[%clk 0:00:47]}  Rb7 {[%clk 0:11:29]}
40. Bc4 {[%clk 0:00:58]}  Rc7 {[%clk 0:11:54]} 41. Ba6 {[%clk 0:00:49]}  Ne4 {[%clk 0:05:20]} 42. Rd5 {[%clk 0:28:23]}  Nc3 {[%clk 0:35:06]}
43. Rd6 {[%clk 0:27:38]}  Be5 {[%clk 0:33:31]} 44. Rd3 {[%clk 0:26:04]}  Bf6 {[%clk 0:33:50]} 45. Bf4 {[%clk 0:19:53]}  Ra7 {[%clk 0:29:37]}
46. Rd6 {[%clk 0:19:44]}  Nd5 {[%clk 0:28:04]} 47. Bd2 {[%clk 0:19:15]}  Be7 {[%clk 0:27:37]} 48. Rxd5 {[%clk 0:18:19]} 1/2-1/2

[Event "2026 European Womens Championship"]
[Site "Batumi, GE"]
[Date "2026.05.30"]
[Round "6"]
[White "Arabidze, Meri"]
[Black "Mirzoeva, Elmira"]
[Result "1-0"]
[Board "52"]
[TimeControl "5400+30"]
[WhiteFideId "13604040"]
[BlackFideId "4127951"]
[WhiteElo "2409"]
[BlackElo "2265"]
[WhiteTitle "IM"]
[BlackTitle "WGM"]
[WhiteClock "0:25:17"]
[BlackClock "0:27:32"]
[Variant "Standard"]

1. d4 {[%clk 1:30:52]}  d5 {[%clk 1:30:44]} 2. c4 {[%clk 1:31:13]}  c6 {[%clk 1:30:59]} 3. cxd5 {[%clk 1:31:32]}  cxd5 {[%clk 1:31:08]}
4. Nf3 {[%clk 1:31:56]}  Nc6 {[%clk 1:30:59]} 5. Nc3 {[%clk 1:32:12]}  Nf6 {[%clk 1:29:43]} 6. Bf4 {[%clk 1:32:35]}  a6 {[%clk 1:28:58]}
7. Rc1 {[%clk 1:32:35]}  g6 {[%clk 1:27:02]} 8. h3 {[%clk 1:32:29]}  Bg7 {[%clk 1:27:13]} 9. e3 {[%clk 1:32:23]}  O-O {[%clk 1:27:01]}
10. Bd3 {[%clk 1:32:13]}  Bf5 {[%clk 1:26:27]} 11. Bxf5 {[%clk 1:27:33]}  gxf5 {[%clk 1:26:51]} 12. g4 {[%clk 1:08:46]}  Qb6 {[%clk 1:01:43]}
13. Qe2 {[%clk 1:01:17]}  e6 {[%clk 0:53:19]} 14. Ne5 {[%clk 0:52:56]}  Nxe5 {[%clk 0:35:15]} 15. Bxe5 {[%clk 0:43:07]}  Nd7 {[%clk 0:23:15]}
16. Bxg7 {[%clk 0:39:26]}  Kxg7 {[%clk 0:23:43]} 17. gxf5 {[%clk 0:39:47]}  Nf6 {[%clk 0:23:46]} 18. fxe6 {[%clk 0:35:42]}  Qxe6 {[%clk 0:22:42]}
19. Qf3 {[%clk 0:31:52]}  Kh8 {[%clk 0:20:45]} 20. Qf4 {[%clk 0:24:28]}  Rae8 {[%clk 0:14:04]} 21. Rg1 {[%clk 0:20:17]}  Rg8 {[%clk 0:05:17]}
22. Kd2 {[%clk 0:20:32]}  b5 {[%clk 0:04:50]} 23. a3 {[%clk 0:19:15]}  Nd7 {[%clk 0:03:49]} 24. Rg5 {[%clk 0:15:43]}  Nb6 {[%clk 0:03:07]}
25. Rcg1 {[%clk 0:15:57]}  Rg6 {[%clk 0:03:08]} 26. Kc1 {[%clk 0:14:47]}  Rxg5 {[%clk 0:01:06]} 27. Qxg5 {[%clk 0:11:02]}  Qg6 {[%clk 0:01:29]}
28. Rg3 {[%clk 0:11:14]}  Qxg5 {[%clk 0:01:40]} 29. Rxg5 {[%clk 0:11:42]}  Rc8 {[%clk 0:01:28]} 30. Kd2 {[%clk 0:09:27]}  Nc4+ {[%clk 0:00:49]}
31. Kc2 {[%clk 0:09:40]}  Nb6 {[%clk 0:01:10]} 32. Kb3 {[%clk 0:07:26]}  Rd8 {[%clk 0:01:15]} 33. Kb4 {[%clk 0:06:59]}  f6 {[%clk 0:01:43]}
34. Rf5 {[%clk 0:05:13]}  Kg7 {[%clk 0:02:09]} 35. Kc5 {[%clk 0:05:00]}  Kg6 {[%clk 0:02:24]} 36. Rf3 {[%clk 0:04:38]}  Nc4 {[%clk 0:02:30]}
37. Nxd5 {[%clk 0:03:08]}  Nxb2 {[%clk 0:01:50]} 38. Rxf6+ {[%clk 0:02:34]}  Kg7 {[%clk 0:01:54]} 39. Rxa6 {[%clk 0:02:27]}  Nd3+ {[%clk 0:02:08]}
40. Kxb5 {[%clk 0:01:58]}  Nxf2 {[%clk 0:02:09]} 41. Nf4 {[%clk 0:00:56]}  Re8 {[%clk 0:00:41]} 42. Re6 {[%clk 0:27:49]}  Rb8+ {[%clk 0:29:15]}
43. Rb6 {[%clk 0:27:51]}  Re8 {[%clk 0:28:48]} 44. Nh5+ {[%clk 0:23:25]}  Kh8 {[%clk 0:28:39]} 45. a4 {[%clk 0:24:45]}  Ne4 {[%clk 0:25:46]}
46. a5 {[%clk 0:24:34]}  Nc3+ {[%clk 0:26:05]} 47. Kc6 {[%clk 0:23:40]}  Re6+ {[%clk 0:25:57]} 48. Kd7 {[%clk 0:23:48]}  Rg6 {[%clk 0:26:01]}
49. Rb8+ {[%clk 0:24:00]}  Rg8 {[%clk 0:26:27]} 50. Rxg8+ {[%clk 0:24:16]}  Kxg8 {[%clk 0:26:54]} 51. a6 {[%clk 0:24:34]}  Nb5 {[%clk 0:27:14]}
52. Kc6 {[%clk 0:24:56]}  Na7+ {[%clk 0:27:32]} 53. Kb7 {[%clk 0:25:17]} 1-0

[Event "2026 European Womens Championship"]
[Site "Batumi, GE"]
[Date "2026.05.30"]
[Round "6"]
[White "Roebers, Eline"]
[Black "Unuk, Laura"]
[Result "1/2-1/2"]
[Board "53"]
[TimeControl "5400+30"]
[WhiteFideId "1058401"]
[BlackFideId "14609215"]
[WhiteElo "2389"]
[BlackElo "2289"]
[WhiteTitle "IM"]
[BlackTitle "IM"]
[WhiteClock "0:31:26"]
[BlackClock "0:31:10"]
[Variant "Standard"]

1. e4 {[%clk 1:30:58]}  c6 {[%clk 1:30:24]} 2. d4 {[%clk 1:31:26]}  d5 {[%clk 1:30:49]} 3. Nd2 {[%clk 1:31:52]}  dxe4 {[%clk 1:24:46]}
4. Nxe4 {[%clk 1:32:01]}  Nf6 {[%clk 1:25:10]} 5. Nxf6+ {[%clk 1:32:28]}  exf6 {[%clk 1:25:34]} 6. Be3 {[%clk 1:32:52]}  Bd6 {[%clk 1:23:36]}
7. Bd3 {[%clk 1:32:34]}  O-O {[%clk 1:22:01]} 8. Ne2 {[%clk 1:33:01]}  Na6 {[%clk 1:21:50]} 9. a3 {[%clk 1:32:53]}  f5 {[%clk 1:18:49]}
10. O-O {[%clk 1:32:18]}  Nc7 {[%clk 1:14:53]} 11. c4 {[%clk 1:28:23]}  Re8 {[%clk 1:10:53]} 12. Qd2 {[%clk 1:22:50]}  h6 {[%clk 1:08:02]}
13. Rae1 {[%clk 1:14:17]}  Qf6 {[%clk 1:03:00]} 14. Ng3 {[%clk 1:05:44]}  Bd7 {[%clk 0:48:18]} 15. Bc2 {[%clk 0:50:14]}  Rad8 {[%clk 0:37:23]}
16. Qd3 {[%clk 0:39:45]}  g6 {[%clk 0:36:33]} 17. Qd2 {[%clk 0:32:07]}  c5 {[%clk 0:20:52]} 18. dxc5 {[%clk 0:29:27]}  Be5 {[%clk 0:18:49]}
19. Bf4 {[%clk 0:21:57]}  Bxf4 {[%clk 0:18:11]} 20. Qxf4 {[%clk 0:22:23]}  Ne6 {[%clk 0:18:33]} 21. Qxh6 {[%clk 0:22:08]}  Qxb2 {[%clk 0:16:18]}
22. Bxf5 {[%clk 0:21:23]}  Qg7 {[%clk 0:07:34]} 23. Qxg7+ {[%clk 0:04:23]}  Kxg7 {[%clk 0:07:59]} 24. Bxe6 {[%clk 0:04:30]}  Bxe6 {[%clk 0:07:08]}
25. Re4 {[%clk 0:04:20]}  Rc8 {[%clk 0:04:47]} 26. Rb1 {[%clk 0:03:24]}  Re7 {[%clk 0:02:55]} 27. Ne2 {[%clk 0:02:40]}  Rec7 {[%clk 0:03:11]}
28. g4 {[%clk 0:02:39]}  Rxc5 {[%clk 0:01:24]} 29. Rxb7 {[%clk 0:02:32]}  R8c7 {[%clk 0:01:42]} 30. Rxc7 {[%clk 0:01:48]}  Rxc7 {[%clk 0:02:08]}
31. Nf4 {[%clk 0:01:45]}  Bxc4 {[%clk 0:02:25]} 32. h4 {[%clk 0:01:45]}  a5 {[%clk 0:01:26]} 33. h5 {[%clk 0:01:14]}  a4 {[%clk 0:00:43]}
34. hxg6 {[%clk 0:00:50]}  fxg6 {[%clk 0:01:09]} 35. g5 {[%clk 0:00:53]}  Kf7 {[%clk 0:00:33]} 36. Kg2 {[%clk 0:00:38]}  Bb3 {[%clk 0:00:59]}
37. Rd4 {[%clk 0:00:39]}  Rc5 {[%clk 0:01:12]} 38. Nd3 {[%clk 0:00:41]}  Rxg5+ {[%clk 0:01:36]} 39. Kf3 {[%clk 0:01:08]}  Rh5 {[%clk 0:01:02]}
40. Nb2 {[%clk 0:01:02]}  Rh1 {[%clk 0:00:35]} 41. Nxa4 {[%clk 0:01:16]}  Ra1 {[%clk 0:30:25]} 42. Nc5 {[%clk 0:31:38]}  Rxa3 {[%clk 0:30:43]}
43. Nxb3 {[%clk 0:32:06]}  Rxb3+ {[%clk 0:31:10]} 44. Ke4 {[%clk 0:31:26]} 1/2-1/2

[Event "2026 European Womens Championship"]
[Site "Batumi, GE"]
[Date "2026.05.30"]
[Round "6"]
[White "Toncheva, Nadya"]
[Black "Vega Gutierrez, Sabrina"]
[Result "0-1"]
[Board "54"]
[TimeControl "5400+30"]
[WhiteFideId "2924056"]
[BlackFideId "2219026"]
[WhiteElo "2320"]
[BlackElo "2375"]
[WhiteTitle "WGM"]
[BlackTitle "IM"]
[WhiteClock "0:01:10"]
[BlackClock "0:03:35"]
[Variant "Standard"]

1. d4 {[%clk 1:30:57]}  d5 {[%clk 1:30:52]} 2. c4 {[%clk 1:31:20]}  e6 {[%clk 1:31:15]} 3. Nc3 {[%clk 1:31:41]}  Nf6 {[%clk 1:31:35]}
4. cxd5 {[%clk 1:32:02]}  exd5 {[%clk 1:31:57]} 5. Bg5 {[%clk 1:32:17]}  Be7 {[%clk 1:32:10]} 6. e3 {[%clk 1:32:25]}  c6 {[%clk 1:32:19]}
7. Bd3 {[%clk 1:32:38]}  Nbd7 {[%clk 1:32:35]} 8. h3 {[%clk 1:29:45]}  Nf8 {[%clk 1:32:49]} 9. Qc2 {[%clk 1:26:59]}  Ne6 {[%clk 1:33:09]}
10. Bh4 {[%clk 1:20:21]}  g6 {[%clk 1:33:26]} 11. Nge2 {[%clk 1:17:45]}  O-O {[%clk 1:33:26]} 12. O-O {[%clk 1:17:32]}  Nh5 {[%clk 1:31:29]}
13. Bxe7 {[%clk 1:15:36]}  Qxe7 {[%clk 1:31:51]} 14. Rab1 {[%clk 1:09:43]}  a5 {[%clk 1:31:07]} 15. Na4 {[%clk 1:02:44]}  Nf6 {[%clk 1:30:59]}
16. Rfe1 {[%clk 0:59:15]}  Rd8 {[%clk 1:17:20]} 17. a3 {[%clk 0:53:56]}  Qf8 {[%clk 1:03:12]} 18. Nf4 {[%clk 0:43:52]}  Ng7 {[%clk 1:00:26]}
19. g4 {[%clk 0:41:56]}  Be6 {[%clk 0:47:50]} 20. f3 {[%clk 0:37:45]}  Nd7 {[%clk 0:47:37]} 21. Rbc1 {[%clk 0:37:32]}  Qd6 {[%clk 0:44:34]}
22. Qf2 {[%clk 0:34:44]}  Rac8 {[%clk 0:41:47]} 23. Qh4 {[%clk 0:32:46]}  Re8 {[%clk 0:40:25]} 24. Qh6 {[%clk 0:31:15]}  c5 {[%clk 0:35:50]}
25. h4 {[%clk 0:28:50]}  cxd4 {[%clk 0:35:39]} 26. exd4 {[%clk 0:29:10]}  Rxc1 {[%clk 0:31:08]} 27. Rxc1 {[%clk 0:29:16]}  Nf8 {[%clk 0:27:29]}
28. Kg2 {[%clk 0:26:10]}  Bd7 {[%clk 0:25:47]} 29. Nc3 {[%clk 0:24:33]}  Bc6 {[%clk 0:25:51]} 30. Rh1 {[%clk 0:19:05]}  Nge6 {[%clk 0:22:38]}
31. Nxe6 {[%clk 0:15:50]}  Qxe6 {[%clk 0:19:57]} 32. h5 {[%clk 0:10:40]}  Qf6 {[%clk 0:20:14]} 33. Ne2 {[%clk 0:09:55]}  Re7 {[%clk 0:18:22]}
34. hxg6 {[%clk 0:06:38]}  fxg6 {[%clk 0:18:48]} 35. g5 {[%clk 0:04:19]}  Qf7 {[%clk 0:16:29]} 36. Qh4 {[%clk 0:02:22]}  Re3 {[%clk 0:15:44]}
37. Nf4 {[%clk 0:02:48]}  Ne6 {[%clk 0:12:13]} 38. Bf5 {[%clk 0:00:47]}  Nxf4+ {[%clk 0:07:33]} 39. Qxf4 {[%clk 0:01:13]}  Re8 {[%clk 0:03:56]}
40. Qh4 {[%clk 0:01:17]}  gxf5 {[%clk 0:04:18]} 41. g6 {[%clk 0:00:47]}  Qxg6+ {[%clk 0:04:00]} 42. Kf2 {[%clk 0:01:10]}  Bb5 {[%clk 0:03:35]} 0-1

[Event "2026 European Womens Championship"]
[Site "Batumi, GE"]
[Date "2026.05.30"]
[Round "6"]
[White "Zherebtsova, Alexandra"]
[Black "Bivol, Alina"]
[Result "1/2-1/2"]
[Board "55"]
[TimeControl "5400+30"]
[WhiteFideId "24129518"]
[BlackFideId "4100123"]
[WhiteElo "2242"]
[BlackElo "2361"]
[WhiteTitle "FM"]
[BlackTitle "IM"]
[WhiteClock "0:00:39"]
[BlackClock "0:05:44"]
[Variant "Standard"]

1. d4 {[%clk 1:29:56]}  Nf6 {[%clk 1:30:53]} 2. c4 {[%clk 1:30:22]}  e6 {[%clk 1:30:56]} 3. Nc3 {[%clk 1:30:44]}  Bb4 {[%clk 1:31:20]}
4. f3 {[%clk 1:30:41]}  Ba5 {[%clk 1:31:42]} 5. e4 {[%clk 1:20:02]}  d5 {[%clk 1:31:47]} 6. e5 {[%clk 1:15:42]}  Nfd7 {[%clk 1:32:02]}
7. cxd5 {[%clk 1:13:00]}  exd5 {[%clk 1:31:07]} 8. f4 {[%clk 1:11:09]}  c5 {[%clk 1:26:43]} 9. Nf3 {[%clk 1:09:13]}  Nc6 {[%clk 1:27:00]}
10. Be3 {[%clk 1:00:22]}  cxd4 {[%clk 1:19:10]} 11. Nxd4 {[%clk 0:58:17]}  O-O {[%clk 1:15:27]} 12. Be2 {[%clk 0:49:45]}  Nxd4 {[%clk 1:12:27]}
13. Bxd4 {[%clk 0:48:56]}  Qh4+ {[%clk 1:10:34]} 14. g3 {[%clk 0:47:43]}  Qh3 {[%clk 1:10:49]} 15. Bf1 {[%clk 0:39:40]}  Qh6 {[%clk 1:11:12]}
16. Bg2 {[%clk 0:38:47]}  Nb6 {[%clk 1:11:18]} 17. O-O {[%clk 0:36:09]}  Qg6 {[%clk 1:03:21]} 18. Bc5 {[%clk 0:25:46]}  Bxc3 {[%clk 0:57:53]}
19. bxc3 {[%clk 0:24:24]}  Rd8 {[%clk 0:57:41]} 20. Qd4 {[%clk 0:20:35]}  Bf5 {[%clk 0:52:26]} 21. a4 {[%clk 0:16:20]}  Be4 {[%clk 0:44:20]}
22. a5 {[%clk 0:15:19]}  Bxg2 {[%clk 0:41:02]} 23. Kxg2 {[%clk 0:11:47]}  Nc4 {[%clk 0:41:08]} 24. f5 {[%clk 0:11:00]}  Qc6 {[%clk 0:39:10]}
25. f6 {[%clk 0:08:32]}  Re8 {[%clk 0:28:50]} 26. Be7 {[%clk 0:07:29]}  Qe6 {[%clk 0:27:09]} 27. Rae1 {[%clk 0:05:40]}  h6 {[%clk 0:25:37]}
28. Qh4 {[%clk 0:04:09]}  d4 {[%clk 0:22:38]} 29. cxd4 {[%clk 0:04:00]}  Nd2 {[%clk 0:22:18]} 30. Rf4 {[%clk 0:02:17]}  Qd5+ {[%clk 0:19:24]}
31. Kf2 {[%clk 0:02:16]}  Rac8 {[%clk 0:19:10]} 32. e6 {[%clk 0:01:39]}  Rc2 {[%clk 0:15:31]} 33. exf7+ {[%clk 0:01:59]}  Qxf7 {[%clk 0:11:19]}
34. fxg7 {[%clk 0:01:29]}  Qxg7 {[%clk 0:06:59]} 35. Rg4 {[%clk 0:01:27]}  Ne4+ {[%clk 0:07:22]} 36. Kf1 {[%clk 0:01:16]}  Nd2+ {[%clk 0:05:50]}
37. Kg2 {[%clk 0:00:41]}  Ne4+ {[%clk 0:06:19]} 38. Kf3 {[%clk 0:00:35]}  Rc3+ {[%clk 0:05:07]} 39. Kg2 {[%clk 0:00:36]}  Rc2+ {[%clk 0:05:34]}
40. Kf1 {[%clk 0:00:39]}  Nd2+ {[%clk 0:05:44]} 1/2-1/2